Cogmind - Beta 12 @@@ ROGUE MODE // 2023.11.02 @ 01:10:45 Player: FrostySpirit Result: Destroyed by S-43 Plague with Heavy Machine Gun Performance ------------- Evolutions (7) 3500 Regions Visited (10) 2000 Robots Destroyed (25) 125 Value Destroyed (792) 792 Prototype IDs (3) 60 Alien Tech Used (0) 0 Bonus (1332) 1332 TOTAL SCORE: 7809 Bonus ------- Follower Combat Kills 232 Entered DSFs 500 Met Imprinter 300 Was Imprinted 300 Cogmind --------- Core Integrity 0/1300 Matter 270/300 Energy 62/100 System Corruption 16% Temperature Cool (0) Movement Core (50) Location -3/Research Parts ------- > --- POWER (2) -------- (None) > --- PROPULSION (6) --- (None) > --- UTILITY (11) ----- Advanced Signal Interpreter Terrain Scan Processor Advanced Targeting Computer Hacking Suite > --- WEAPON (2) ------- (None) > --- INVENTORY (5) ---- Makeshift ECM Suite Advanced Recalibrator Hacking Drone Bay (1/1) Quantum Rifle GAL Module Peak State ------------ > --- POWER ------------ Improved Ion Engine > --- PROPULSION ------- Improved Antigrav System Improved Gyrokinetic Inverter Improved Gyrokinetic Inverter Improved Gyrokinetic Inverter Improved Gyrokinetic Inverter Improved Gyrokinetic Inverter > --- UTILITY ---------- Improved Coolant Injector Small Storage Unit Medium Storage Unit Improved Energy Well Signal Interpreter Terrain Scan Processor Improved Target Analyzer Improved Core Shielding Improved Core Shielding Hacking Suite Makeshift System Shield > --- WEAPON ----------- Quantum Rifle Linear Accelerator > --- INVENTORY -------- Advanced Targeting Computer Makeshift ECM Suite Improved Recalibrator Advanced Recalibrator Hacking Drone Bay Tesla Rifle Compact HERF Cannon GAL Module [Rating: 105] Favorites ----------- Power Makeshift Power Source Engine Makeshift Power Source Power Core Hybrid Fission Core Propulsion Aluminum Leg Treads Armored Treads Leg Aluminum Leg Hover Unit Improved Gyrokinetic Inverter Flight Unit Field Propulsion Drive Utility Signal Interpreter Device Sensor Array Storage Small Storage Unit Processor Signal Interpreter Hackware Makeshift Hacking Suite Protection Improved Core Shielding Weapon Heavy Beamcaster Energy Gun Heavy Beamcaster Energy Cannon Heavy Phase Cannon Ballistic Gun Assault Rifle Ballistic Cannon Mass Driver Build | -11 -10 -9 -9 -7 -6 -6 -6 -5 -4 -3 ------- Run | Jun Mat Mat Min Zio Pro Fac DSF Fac Fac Res Slots Evolved 14 | . . 2 . . . 6 . 2 2 2 Power 1 | . . . . . . 1 . . . . Propulsion 4 | . . . . . . . . 2 . 2 Utility 9 | . . 2 . . . 5 . . 2 . Weapon . | . . . . . . . . . . . Parts Attached 88 | 6 2 5 1 6 5 6 6 25 7 19 Power 9 | 1 . 1 . 1 . 1 . 2 . 3 Engine 8 | 1 . 1 . 1 . . . 2 . 3 Core 1 | . . . . . . 1 . . . . Reactor . | . . . . . . . . . . . Propulsion 20 | 2 . . . . 2 . 2 8 4 2 Treads 3 | . . . . . . . 2 1 . . Leg 7 | 2 . . . . 2 . . 3 . . Wheel . | . . . . . . . . . . . Hover 8 | . . . . . . . . 2 4 2 Flight 2 | . . . . . . . . 2 . . Utility 41 | 1 2 3 1 3 3 5 3 11 3 6 Device 14 | . 1 1 . 2 3 1 1 4 1 . Storage 7 | 1 . 1 . . . . 1 1 1 2 Processor 10 | . 1 1 1 . . . 1 4 . 2 Hackware 6 | . . . . . . 4 . 1 . 1 Protection 4 | . . . . 1 . . . 1 1 1 Artifact . | . . . . . . . . . . . Weapon 18 | 2 . 1 . 2 . . 1 4 . 8 Energy Gun 8 | 1 . . . 2 . . 1 . . 4 Energy Cannon 3 | . . . . . . . . 2 . 1 Ballistic Gun 1 | 1 . . . . . . . . . . Ballistic Cannon 6 | . . 1 . . . . . 2 . 3 Launcher . | . . . . . . . . . . . Special Weapon . | . . . . . . . . . . . Impact Weapon . | . . . . . . . . . . . Slashing Weapon . | . . . . . . . . . . . Piercing Weapon . | . . . . . . . . . . . Special Melee Weapon . | . . . . . . . . . . . Unidentified Prototypes 3 | . . . . 2 . . . . . 1 Parts Lost 41 | . . . . . . . 3 20 . 18 Power 6 | . . . . . . . . 3 . 3 Propulsion 13 | . . . . . . . . 7 . 6 Utility 17 | . . . . . . . 1 8 . 8 Weapon 5 | . . . . . . . 2 2 . 1 Highest Loss Streak 19 | . . . . . . . 2 19 . 15 To Critical Strikes . | . . . . . . . . . . . Average Slot Usage (%) 94 | . 86 94 100 99 100 96 97 88 66 77 Engine 8 | . 14 11 11 10 11 6 6 4 . 1 Treads 2 | . . . . . . . 12 12 . . Leg 16 | . 28 22 22 22 22 13 . 5 . . Hover 2 | . . . . . . . . . 19 24 Device 14 | . . 11 11 16 22 20 20 14 5 5 Storage 9 | . 13 10 11 11 11 6 6 4 1 8 Processor 13 | . 1 17 22 16 11 6 9 12 15 14 Hackware 5 | . . . . . . 26 22 16 10 7 Protection 1 | . . . . . . . . . 9 7 Energy Gun 14 | . 14 11 11 21 22 13 10 2 . 1 Ballistic Cannon 1 | . . 7 11 . . . . 3 5 2 Naked Turns . | . . . . . . . . . . . Heaviest Build 81 | 14 14 19 19 24 25 29 64 81 18 52 Greatest Support 67 | 20 20 20 20 20 37 37 40 67 36 60 Greatest Overweight (x) 10 | 1 . . . 1 . . 1 4 3 10 Average Overweight (x) . | . . . . . . . . . . . Largest Inventory Capacity 20 | 8 8 8 8 8 8 8 20 20 8 10 Average Capacity 9 | 6 7 7 8 8 8 8 19 17 5 8 Most Carried 14 | 5 7 8 8 8 8 8 13 14 6 10 Average Carried 8 | 2 6 6 6 7 7 7 11 11 5 6 Final Capacity 20 | 8 5 8 8 8 8 8 20 5 8 5 Final Carried 13 | 4 5 8 7 8 8 8 13 5 6 5 Class Distribution -------------------- 33% | Mutant 29% | Derelict-Mutant 20% | Scavenger-Skirmisher 16% | Hacker-Mutant Dominant Class ---------------- Mutant | -10/Materials Mutant | -9/Materials Scavenger-Skirmisher | -9/Mines Scavenger-Skirmisher | -7/Zion Derelict-Mutant | -6/Proximity Caves Derelict-Mutant | -6/Factory Hacker-Mutant | -6/DSF Derelict-Mutant | -5/Factory Hacker-Mutant | -4/Factory Hacker-Mutant | -3/Research Resources | -11 -10 -9 -9 -7 -6 -6 -6 -5 -4 -3 ----------- Run | Jun Mat Mat Min Zio Pro Fac DSF Fac Fac Res Matter Collected 1301 | 260 35 74 25 65 50 . 101 226 87 378 Remotely 149 | . . . . . . . . 62 87 . Salvage Created 1490 | . 62 121 . . . . 13 424 100 770 Parts 53 | . 6 10 . . . . . 14 2 21 Haulers Intercepted . | . . . . . . . . . . . Recyclers Shooed 2 | . . . . . . . . 1 . 1 Parts Field Recycled . | . . . . . . . . . . . Retrieved Matter . | . . . . . . . . . . . Parts Self-Destructed 7 | . . . . 6 1 . . . . . Prevented 12 | . . . . . 12 . . . . . Kills | -11 -10 -9 -9 -7 -6 -6 -6 -5 -4 -3 ------- Run | Jun Mat Mat Min Zio Pro Fac DSF Fac Fac Res Combat Hostiles Destroyed 11 | . 2 1 . . . . 1 4 . 3 Melee 1 | . . . . . . . 1 . . . Guns 3 | . 2 1 . . . . . . . . Cannons 7 | . . . . . . . . 4 . 3 Classes Destroyed 8 | . 3 2 . . . . . 1 . 2 Builder 1 | . . . . . . . . . . 1 Recycler 8 | . . 1 . . . . . 1 1 5 Watcher 5 | . 1 2 . . . . . 1 . 1 Swarmer 2 | . 1 . . . . . 1 . . . Grunt 6 | . 1 . . . . . . 3 . 2 Sentry 1 | . . 1 . . . . . . . . Hunter 1 | . . . . . . . . . . 1 Programmer 1 | . . . . . . . . 1 . . Best Kill Streak 7 | . 1 2 . . . . 1 1 1 7 Combat Bots Only 1 | . 1 1 . . . . 1 1 . 1 Max Kills in Single Turn 1 | . 1 1 . . . . 1 1 1 1 Gunslinging . | . . . . . . . . . . . Exploded . | . . . . . . . . . . . Melee 1 | . . . . . . . 1 . . . Uniques/NPCs Destroyed . | . . . . . . . . . . . Combat | -11 -10 -9 -9 -7 -6 -6 -6 -5 -4 -3 -------- Run | Jun Mat Mat Min Zio Pro Fac DSF Fac Fac Res Damage Taken 6391 | . 30 88 . . 63 16 743 2645 . 2806 Core 2142 | . . . . . . 16 186 634 . 1306 Absorbed by Shields . | . . . . . . . . . . . Redirected to Shielding 204 | . . . . . . . . 35 . 169 Core Remaining (%) 85 | 100 100 . . . 100 . 76 36 100 . Volleys Fired 101 | . 9 8 . . 2 . 4 35 6 37 Largest 2 | . 2 2 . . 2 . 1 2 1 2 Hottest 188 | . 60 79 . . 141 . 81 147 48 188 Shots Fired 163 | . 18 16 . . 4 . 4 51 6 64 Gun 64 | . 18 8 . . 4 . 4 2 . 28 Cannon 99 | . . 8 . . . . . 49 6 36 Launcher . | . . . . . . . . . . . Special . | . . . . . . . . . . . Kinetic 76 | . 9 8 . . . . . 21 6 32 Thermal 64 | . . . . . 2 . 4 30 . 28 Explosive . | . . . . . . . . . . . Electromagnetic 23 | . 9 8 . . 2 . . . . 4 Robot Hit Streak 10 | . 3 4 . . 2 . 1 8 2 10 Robot Miss Streak 5 | . 2 3 . . 1 . 2 3 5 4 Penetration Max . | . . . . . . . . . . . Secondary Targets . | . . . . . . . . . . . Shots Hit Robots 101 | . 9 10 . . 4 . 1 33 2 42 Core Hits 42 | . 4 6 . . . . 3 10 2 17 Critical Kills . | . . . . . . . . . . . Critical Parts Destroyed . | . . . . . . . . . . . Critical Strikes 6 | . . 1 . . . . . 3 . 2 Blast 5 | . . . . . . . . 3 . 2 Corrupt 1 | . . 1 . . . . . . . . Melee Attacks . | . . . . . . . . . . . Impact . | . . . . . . . . . . . Slashing . | . . . . . . . . . . . Piercing . | . . . . . . . . . . . Sneak Attacks . | . . . . . . . . . . . Combat Hostiles . | . . . . . . . . . . . Follow-up Attacks . | . . . . . . . . . . . Damage Inflicted 3294 | . 120 169 . . 64 . 57 1264 52 1568 Guns 724 | . 120 67 . . 64 . 46 19 . 408 Cannons 2432 | . . 102 . . . . . 1135 52 1143 Explosions . | . . . . . . . . . . . Melee . | . . . . . . . . . . . Ramming 138 | . . . . . . . 11 110 . 17 Kinetic 1765 | . 63 102 . . . . . 421 52 1127 Thermal 1236 | . . . . . 49 . 46 733 . 408 Explosive . | . . . . . . . . . . . Electromagnetic 155 | . 57 67 . . 15 . . . . 16 Impact . | . . . . . . . . . . . Slashing . | . . . . . . . . . . . Piercing . | . . . . . . . . . . . Highest Corruption 16 | . 1 . . . . . . 11 . 16 Average Corruption 7 | . 1 . . . . . . 6 . 11 Corruption Purged . | . . . . . . . . . . . Corruption Blocked . | . . . . . . . . . . . Effects 10 | . . . . . . . . 4 . 6 Message Errors 2 | . . . . . . . . . . 2 Matter Fused 3 | . . . . . . . . . . 3 Parts Rejected 1 | . . . . . . . . 1 . . Data Loss (major) 1 | . . . . . . . . 1 . . Misfires 1 | . . . . . . . . 1 . . Misdirections 2 | . . . . . . . . 1 . 1 Overload Shots . | . . . . . . . . . . . Overflow Damage 177 | . . . . . . . . 103 . 74 Projectiles 177 | . . . . . . . . 103 . 74 Explosions . | . . . . . . . . . . . Melee . | . . . . . . . . . . . Knockbacks 21 | . . . . . . . . 7 1 13 Impact 3 | . . . . . . . . 3 . . Kinetic 16 | . . . . . . . . 4 1 11 Secondary 2 | . . . . . . . . . . 2 Self-Inflicted Damage 22 | . . . . . . . . 14 . 8 Shots . | . . . . . . . . . . . Rammed 33 | . . . . . . . 2 28 . 3 Targets Rammed 34 | . . . . . . . 3 28 . 3 Kicked . | . . . . . . . . . . . Crushed 1 | . . . . . . . 1 . . . Highest Temperature 496 | . 6 36 . . 140 . 18 496 . 197 Average Temperature 116 | . 6 14 . . 72 . 7 167 . 103 Received Heat Transfer 819 | . 6 9 . . 12 . 117 552 . 123 Effects 6 | . . . . . . . . 6 . . Shutdowns 2 | . . . . . . . . 2 . . Interference 3 | . . . . . . . . 3 . . Damage (minor) 1 | . . . . . . . . 1 . . Siege Activations . | . . . . . . . . . . . Robots Corrupted . | . . . . . . . . . . . Combat Hostiles . | . . . . . . . . . . . Parts Fried . | . . . . . . . . . . . Impact Corruptions . | . . . . . . . . . . . Robots Melted . | . . . . . . . . . . . Combat Hostiles . | . . . . . . . . . . . Parts Melted . | . . . . . . . . . . . Heat Transferred 1482 | . . . . . 74 . 74 816 . 518 Parts Sabotaged . | . . . . . . . . . . . Parts Stolen . | . . . . . . . . . . . Parts Stripped . | . . . . . . . . . . . Power Chain Reactions . | . . . . . . . . . . . Missiles Intercepted . | . . . . . . . . . . . Alert | -11 -10 -9 -9 -7 -6 -6 -6 -5 -4 -3 ------- Run | Jun Mat Mat Min Zio Pro Fac DSF Fac Fac Res Peak Influence 135 | . 113 135 8 . . 22 101 83 26 62 Initial 47 | . . 47 8 . . 22 15 47 15 13 Average 40 | . 66 75 8 . . 22 58 37 20 23 Maximum Alert Level . | . . . . . . . . . . . Low Security (%) 100 | 100 100 100 100 . . 100 100 100 100 100 Level 1 . | . . . . . . . . . . . Level 2 . | . . . . . . . . . . . Level 3 . | . . . . . . . . . . . Level 4 . | . . . . . . . . . . . Level 5 . | . . . . . . . . . . . High Security . | . . . . . . . . . . . Max Security . | . . . . . . . . . . . Squads Dispatched 4 | . 1 . . . . 1 1 1 . . Investigation . | . . . . . . . . . . . Extermination 2 | . . . . . . 1 . 1 . . Reinforcement 2 | . 1 . . . . . 1 . . . Assault . | . . . . . . . . . . . Garrison . | . . . . . . . . . . . Intercept . | . . . . . . . . . . . Searches Triggered . | . . . . . . . . . . . Construction Impeded . | . . . . . . . . . . . Haulers Reinforced . | . . . . . . . . . . . Active Scanning Responses . | . . . . . . . . . . . Cargo Convoy Interrupts 1 | . . . . . . . . 1 . . Stealth | -11 -10 -9 -9 -7 -6 -6 -6 -5 -4 -3 --------- Run | Jun Mat Mat Min Zio Pro Fac DSF Fac Fac Res Distress Signals 1 | . 1 . . . . . . . . . Communications Jammed 1 | . . . . . . . . 1 . . Distress Signals 1 | . . . . . . . . 1 . . Times Spotted 51 | . 5 5 . . 1 . 7 19 . 14 Peak Tracking Total 7 | . 2 3 . . 1 1 4 4 . 7 Tactical Retreats 6 | . . . . . . . . 4 . 2 Traps | -11 -10 -9 -9 -7 -6 -6 -6 -5 -4 -3 ------- Run | Jun Mat Mat Min Zio Pro Fac DSF Fac Fac Res Traps Triggered 5 | . 1 1 . . . . 2 1 . . Indirectly . | . . . . . . . . . . . Trap Hack Attempts . | . . . . . . . . . . . Triggered . | . . . . . . . . . . . Disarmed . | . . . . . . . . . . . Reprogrammed . | . . . . . . . . . . . Reused . | . . . . . . . . . . . Traps Extracted . | . . . . . . . . . . . Installed . | . . . . . . . . . . . Triggered 3 | . . . . . 2 . . 1 . . Machines | -11 -10 -9 -9 -7 -6 -6 -6 -5 -4 -3 ---------- Run | Jun Mat Mat Min Zio Pro Fac DSF Fac Fac Res Machines Disabled 3 | . . . . . . . 1 1 . 1 Max in Single Turn 1 | . . . . . . . . 1 . 1 Machines Repaired . | . . . . . . . . . . . Machines Sabotaged . | . . . . . . . . . . . Overloaded Fab Kills . | . . . . . . . . . . . Hacking | -11 -10 -9 -9 -7 -6 -6 -6 -5 -4 -3 --------- Run | Jun Mat Mat Min Zio Pro Fac DSF Fac Fac Res Machines Accessed 7 | . 1 1 . 1 . 1 . 3 . . Terminals 3 | . 1 . . . . 1 . 1 . . Fabricators 1 | . . . . . . . . 1 . . Repair Stations . | . . . . . . . . . . . Recycling Units . | . . . . . . . . . . . Scanalyzers 2 | . . 1 . . . . . 1 . . Garrison Access . | . . . . . . . . . . . Total Hacks 45 | . 4 9 . 7 . 1 . 24 . . Successful 38 | . 2 8 . 7 . 1 . 20 . . Failed 7 | . 2 1 . . . . . 4 . . Catastrophic 1 | . 1 . . . . . . . . . Database Lockouts . | . . . . . . . . . . . Manual 10 | . 5 . . 2 . . . . . 3 Terminals 8 | . 4 . . . . 1 . 3 . . Fabricators 3 | . . . . . . . . 3 . . Repair Stations . | . . . . . . . . . . . Recycling Units . | . . . . . . . . . . . Scanalyzers 27 | . . 9 . . . . . 18 . . Garrison Access . | . . . . . . . . . . . Terminal Hacks 11 | . 2 . . 7 . 1 . 1 . . Part Schematic 7 | . . . . 7 . . . . . . Open DSF 2 | . . . . . . 1 . 1 . . Terminal Index 1 | . 1 . . . . . . . . . Hauler Manifests 1 | . 1 . . . . . . . . . Fabricator Hacks 2 | . . . . . . . . 2 . . Network Status 1 | . . . . . . . . 1 . . Build 1 | . . . . . . . . 1 . . Repair Station Hacks . | . . . . . . . . . . . Recycling Unit Hacks . | . . . . . . . . . . . Scanalyzer 25 | . . 8 . . . . . 17 . . Insert Component 12 | . . 4 . . . . . 8 . . Analyze 13 | . . 4 . . . . . 9 . . Garrison Access Hacks . | . . . . . . . . . . . Unauthorized Hacks . | . . . . . . . . . . . Terminals . | . . . . . . . . . . . Fabricators . | . . . . . . . . . . . Repair Stations . | . . . . . . . . . . . Recycling Units . | . . . . . . . . . . . Scanalyzers . | . . . . . . . . . . . Garrison Access . | . . . . . . . . . . . Data Cores Recovered . | . . . . . . . . . . . Used . | . . . . . . . . . . . Hacking Detections 3 | . 1 . . . . . . 2 . . Full Trace Events . | . . . . . . . . . . . Feedback Events . | . . . . . . . . . . . Feedback Blocked . | . . . . . . . . . . . Robot Schematics Acquired . | . . . . . . . . . . . Robots Built 3 | . . . . . . . . 3 . . Authchips . | . . . . . . . . . . . Time 44 | . . . . . . . . 44 . . Total Robot Build Rating 12 | . . . . . . . . 12 . . Part Schematics Acquired 16 | . . 4 . 7 . . . 5 . . Parts Built . | . . . . . . . . . . . Authchips . | . . . . . . . . . . . Time . | . . . . . . . . . . . Total Part Build Rating . | . . . . . . . . . . . Parts Repaired . | . . . . . . . . . . . Time . | . . . . . . . . . . . Parts Recycled . | . . . . . . . . . . . Recycled Matter . | . . . . . . . . . . . Retrieved Matter . | . . . . . . . . . . . Retrieved Components . | . . . . . . . . . . . Parts Scanalyzed 9 | . . 4 . . . . . 5 . . Part Schematics Acquired 9 | . . 4 . . . . . 5 . . Parts Damaged . | . . . . . . . . . . . Bothacking | -11 -10 -9 -9 -7 -6 -6 -6 -5 -4 -3 ------------ Run | Jun Mat Mat Min Zio Pro Fac DSF Fac Fac Res Used RIF Installer . | . . . . . . . . . . . Robots Hacked . | . . . . . . . . . . . Non-combat . | . . . . . . . . . . . Combat . | . . . . . . . . . . . Robot Hacks Applied . | . . . . . . . . . . . Relay Couplers Released . | . . . . . . . . . . . Fabnet Peak Effective % . | . . . . . . . . . . . Robots Rewired . | . . . . . . . . . . . Allies Hacked . | . . . . . . . . . . . Hacks Repelled . | . . . . . . . . . . . Allies | -11 -10 -9 -9 -7 -6 -6 -6 -5 -4 -3 -------- Run | Jun Mat Mat Min Zio Pro Fac DSF Fac Fac Res Total Allies 7 | . . . . 4 . . . 3 . . Largest Group 4 | . . . . 4 4 2 2 3 . . Highest-Rated Group 155 | . . . . 155 155 73 73 60 . . Highest-Rated Ally 40 | . . . . 40 40 38 38 20 . . Total Orders 2 | . . . . . 2 . . . . . EXPLORE 1 | . . . . . 1 . . . . . RETURN 1 | . . . . . 1 . . . . . Ally Attacks 29 | . . . . . 11 . 14 4 . . Total Damage 830 | . . . . . 362 . 368 100 . . Kills 6 | . . . . . 1 . 4 1 . . Allies Corrupted . | . . . . . . . . . . . Allies Melted 1 | . . . . . . . . 1 . . Intel | -11 -10 -9 -9 -7 -6 -6 -6 -5 -4 -3 ------- Run | Jun Mat Mat Min Zio Pro Fac DSF Fac Fac Res Robot Analysis Total . | . . . . . . . . . . . Derelict Logs Recovered 1 | . . . . . 1 . . . . . Drone Launches 3 | . . . . . 3 . . . . . Drone Recoveries 1 | . . . . . 1 . . . . . Zionite Intel Received 1 | . . . . . . . . . . 1 Branch Access 1 | . . . . . . . . . . 1 Exploration | -11 -10 -9 -9 -7 -6 -6 -6 -5 -4 -3 ------------- Run | Jun Mat Mat Min Zio Pro Fac DSF Fac Fac Res Turns Passed 6839 | 76 262 467 65 2650 952 348 178 1097 150 594 Spaces Moved 3928 | 55 182 328 50 1419 587 220 63 445 145 434 Core 209 | 7 . . . . . . . 112 3 87 Treads 364 | . . . . . . . 56 308 . . Legs 2856 | 48 182 328 50 1419 587 220 7 15 . . Wheels . | . . . . . . . . . . . Hover 499 | . . . . . . . . 10 142 347 Flight . | . . . . . . . . . . . Fastest Speed 50 | 50 120 120 120 120 120 135 135 50 60 50 Average Speed 145 | 112 120 120 120 171 131 135 237 195 79 81 Slowest Speed 550 | 120 120 120 120 190 135 135 250 330 200 550 Overloaded Moves . | . . . . . . . . . . . Propulsion Burnouts . | . . . . . . . . . . . Robots Hopped . | . . . . . . . . . . . Cave-ins Triggered . | . . . . . . . . . . . Exploration Rate (%) 27 | 3 29 16 10 91 76 2 47 12 3 9 Regions Visited 10 Branch Regions 3 Pre-discovered Areas 3 | . . . 1 1 1 . . . . . Known Exits Taken 6 | . 1 1 1 1 1 1 . . . . Unknown Exits Taken 3 | 1 . . . . . . . 1 1 . Scrap Searched 7 | . . . 1 4 2 . . . . . Spaces Dug . | . . . . . . . . . . . Terrain Destroyed 23 | . . 1 . . . . . 17 3 2 Melee . | . . . . . . . . . . . Projectile 23 | . . 1 . . . . . 17 3 2 AOE . | . . . . . . . . . . . Terrain Rammed . | . . . . . . . . . . . Walls Destroyed . | . . . . . . . . . . . Machines Disabled . | . . . . . . . . . . . Actions | -11 -10 -9 -9 -7 -6 -6 -6 -5 -4 -3 --------- Run | Jun Mat Mat Min Zio Pro Fac DSF Fac Fac Res Total 4849 | 67 208 387 56 1634 765 271 83 595 171 612 Wait 582 | . 8 33 . 183 164 40 2 48 10 94 Move 3918 | 54 181 327 49 1418 586 219 62 444 144 434 Hop . | . . . . . . . . . . . Pick Up 59 | 7 5 7 1 11 2 6 5 5 2 8 Fast Attach 41 | 3 2 2 . 4 1 . 1 12 6 10 Attach 36 | 3 . 2 1 1 . 6 1 12 1 9 Detach 13 | . . 2 1 3 . . . 2 . 5 Swap 11 | . . 1 . 1 4 . 4 1 . . Drop 51 | . 3 5 1 13 6 . 1 8 2 12 Fire 101 | . 9 8 . . 2 . 4 35 6 37 Melee . | . . . . . . . . . . . Ram 14 | . . . . . . . . 11 . 3 Kick . | . . . . . . . . . . . Crush 20 | . . . . . . . 3 17 . . Escape Stasis . | . . . . . . . . . . . Rewire 3 | . . . 3 . . . . . . . Trap . | . . . . . . . . . . . Miscellaneous . | . . . . . . . . . . . Route ------- -11/Junkyard -10/Materials -9/Materials -9/Mines (discovered 2 exits: [*Mat] / *Zio) -7/Zion -6/Proximity Caves -6/Factory -6/DSF -5/Factory -4/Factory -3/Research (discovered 3 exits: Arm / Tes x2) History --------- Turn | Location | Event 12 | -11/Junkyard | Discovered new exit (range 14) 77 | -11/Junkyard | Entered Materials 295 | -10/Materials | Discovered new exit (range 7) 306 | -10/Materials | Build established: Mutant 337 | -10/Materials | Identified exit to Materials 339 | -10/Materials | Entered another Materials area 339 | -9/Materials | Evolved 2 slots: Utility x2 376 | -9/Materials | Discovered new exit (range 14) 390 | -9/Materials | Identified exit to Mines 806 | -9/Materials | Entered Mines 807 | -9/Mines | Learned location of Storage (-7) 827 | -9/Mines | Discovered new exit (range 16) 828 | -9/Mines | A Derelict revealed a hidden shortcut to a safe place 856 | -9/Mines | Identified exit to Zion 871 | -9/Mines | Entered Zion 1091 | -7/Zion | Build established: Scavenger-Skirmisher 1106 | -7/Zion | Received a visual enhancement algorithm 1776 | -7/Zion | Learned location of Warlord (-4) 1896 | -7/Zion | Found GAL Module 2294 | -7/Zion | Found Prototype Device 2294 | -7/Zion | Identified Mobile Refinery Mk. CCLXVII 2581 | -7/Zion | Build established: Mutant 2861 | -7/Zion | Given the Hacking Drone Bay 3025 | -7/Zion | Imprinted 3027 | -7/Zion | Declared Zion's savior 3193 | -7/Zion | Found Prototype Device 3198 | -7/Zion | Identified Hacking Drone Bay 3401 | -7/Zion | Discovered new exit (range 16) 3519 | -7/Zion | Identified exit to Proximity Caves 3521 | -7/Zion | Entered Proximity Caves 3521 | -6/Proximity Caves | Accompanied by 4 allies 3647 | -6/Proximity Caves | Learned location of Extension (-5) 3993 | -6/Proximity Caves | Build established: Derelict-Mutant 4336 | -6/Proximity Caves | Spotted B-75 Beast 4362 | -6/Proximity Caves | Allies destroyed B-75 Beast 4461 | -6/Proximity Caves | Discovered new exit (range 7) 4468 | -6/Proximity Caves | Identified exit to Factory 4473 | -6/Proximity Caves | Entered Factory 4473 | -6/Factory | Accompanied by 2 allies 4473 | -6/Factory | Evolved 6 slots: Power x1, Utility x5 4810 | -6/Factory | Identified exit to DSF 4821 | -6/Factory | Entered DSF 4821 | -6/DSF | Accompanied by 2 allies 4885 | -6/DSF | Discovered new exit (range 13) 4891 | -6/DSF | Additional patrols routed to DSF 4935 | -6/DSF | Identified exit to Factory 4999 | -6/DSF | Entered Factory 4999 | -5/Factory | Evolved 2 slots: Propulsion x2 5111 | -5/Factory | Fabricated B-48 Gladiator (x3) 5975 | -5/Factory | Core integrity fell below 50% 6055 | -5/Factory | System corruption reached 10% 6085 | -5/Factory | Lost 19 parts (2p7n8u2w) 6088 | -5/Factory | Discovered new exit (range 8) 6095 | -5/Factory | Cargo convoy interrupted 6096 | -5/Factory | Entered another Factory area 6096 | -4/Factory | Evolved 2 slots: Utility x2 6145 | -4/Factory | Build established: Hacker-Mutant 6193 | -4/Factory | Discovered new exit (range 5) 6246 | -4/Factory | Entered Research 6246 | -3/Research | Evolved 2 slots: Propulsion x2 6449 | -3/Research | Retrieved Zion intel report: Branch Access 6449 | -3/Research | Identified exit to Armory 6449 | -3/Research | Identified exit to Testing 6759 | -3/Research | System corruption reached 10% 6796 | -3/Research | Core integrity fell below 50% 6809 | -3/Research | Core integrity fell below 20% 6837 | -3/Research | Lost 15 parts (2p5n7u1w) 6840 | -3/Research | Destroyed by S-43 Plague with Heavy Machine Gun Last Messages --------------- 06801_ System corrupted: Matter fused (-7). 06801_ U-05 Engineer destroyed. 06802_ S-43 Plague IFF system glitched. 06802_ T-07 Excavator destroyed. 06803_ Imp. Coolant Injector destroyed. 06804_ Imp. Gyrokinetic Inverter destroyed. 06805_ Signal Interpreter destroyed. 06806_ P-80 Master resets S-43 Plague, system corruption cleaned. 06806_ Imp. Target Analyzer destroyed. 06807_ P-80 Master resets S-43 Plague, system corruption cleaned. 06818_ 4KCCZX#,NS5Z4T4G%4>%0E9EBFFIEH%Y 06822_ Acquired Hacking Suite. 06826_ Dropped Quantum Rifle. 06827_ Acquired Quantum Rifle. 06828_ P-80 Master resets S-43 Plague, system corruption cleaned. 06830_ Detecting system override signal. 06832_ Acquired Hrd. Medium Armor Plating. 06833_ Dropped Hrd. Medium Armor Plating. 06836_ MMJUPU=R/MABVJ%8JIEY3>KPZX6W 06838_ P-80 Master resets P-80 Master, system corruption cleaned. Map ----- +----------------------------------------------------+ | ?????????????????????????????????????????????????? | | ?????????????????????????????????????????????????? | | ?????????????????????????????????????????????????? | | ?????????????????????????????????????????????????? | | ?????????????????????????????????????????????????? | | ?????????????????????????????????????????????????? | | ?????????????????????????????????????????????????? | | ?????????????????????????????????????????????????? | | ?????????????????????????????????????????????????? | | ?????????????????????????????????????????????????? | | ?????????????????????????????????????????????????? | | ?????????????????????????????????????????????????? | | ?????????????????????????????????????????????????? | | ???????????????????##############????????????????? | | ???????????????????# ! #????????????????? | | ???????????????????# #????????????????? | | ???????????????????# #????????????????? | | ???????????????????# p #????????????????? | | ???????????????????# """ #????????????????? | | ??????# ???????????# """ #????????????????? | | ??????#= ??????????# s""" #????????????????? | | ??????# "?????????# """ #????????????????? | | ??????# "?????#???# """ #????????????????? | | ??????# "???? #???# s p #????????????????? | | ??????? ? ????# #????????????????? | | ???????? ??????# @ #????????????????? | | ##########+###############/######????????????????? | | *! #????????????????????? | | |%! #????????????????????? | | ! = #????????????????????? | | !%* #????????????????????? | | #############################????????????????????? | | ?????????????????????????????????????????????????? | | ?????????????????????????????????????????????????? | | ?????????????????????????????????????????????????? | | ?????????????????????????????????????????????????? | | ?????????????????????????????????????????????????? | | ?????????????????????????????????????????????????? | | ?????????????????????????????????????????????????? | | ?????????????????????????????????????????????????> | | ?????????????????????????????????????????????????? | | ?????????????????????????????????????????????????? | | ?????????????????????????????????????????????????? | | ?????????????????????????????????????????????????? | | ?????????????????????????????????????????????????? | | ?????????????????????????????????????????????????? | | ?????????????????????????????????????????????????? | | ?????????????????????????????????????????????????? | | ?????????????????????????????????????????????????? | | ?????????????????????????????????????????????????? | +----------------------------------------------------+ Best States ------------- Heat Dissipation 46 Coolant Potential 80 Energy Generation 21 Energy Capacity 970 Matter Stores 300 Matter Capacity 300 Sight Range 18 Robot Scan Range 16 Terrain Scan Density 85 ECM Strength 2 Jamming Range 12 Corruption Containment 16 Armor Coverage 100 Core Shielding 30 Evasion (%) 55 Targeting Accuracy 8 Target Analysis 6 Recoil Reduction 3 Offensive Hacking 22 Defensive Hacking 22 Item Schematics ----------------- Sensor Array | -9/Materials | Scanalyzed Hover Unit | -9/Materials | Scanalyzed Visual Processing Unit | -9/Materials | Scanalyzed Grenade Launcher | -9/Materials | Scanalyzed Beamcaster | -7/Zion | Free Hvy. Beamcaster | -7/Zion | Free Riot Gun | -7/Zion | Free Barrage Gun | -7/Zion | Free Hvy. Battle Rifle | -7/Zion | Free Battle Cannon | -7/Zion | Free Flamer | -7/Zion | Free Mak. ECM Suite | -5/Factory | Scanalyzed Field Propulsion Drive | -5/Factory | Scanalyzed Hacking Suite | -5/Factory | Scanalyzed Imp. Target Analyzer | -5/Factory | Scanalyzed Transmission Jammer | -5/Factory | Scanalyzed Robot Schematics ------------------ None Fabricated ------------ B-48 Gladiator | x3 | -5/Factory | Preloaded Alien Tech Used ----------------- None Achievements -------------- Dangerous Findings My Command Is Your Wish No Signal Challenges ------------ None Game ------ Seed CloakGaussInverter Manual? 0 Play Time 01:20:48 Cumulative 25.4 hours Start 2023.11.01 @ 23:47:59 End 2023.11.02 @ 01:10:45 Sessions 1 Manual Loads 0 Difficulty Rogue Special Mode None Game No. 37 Rogue 37 Adventurer 0 Explorer 0 Win Type - Total 0 Types 0/0/0/0/0/0/0/0/0 Lore% 19 Gallery% 33 Achievement% 23 Wizard Run 0 Options --------- ASCII 0 Keyboard 0 Movement Numpad Keybinds 0 Fullscreen 1 Font 18/TerminusBold Map View 76x50 Tactical HUD 1 Map Filters NONE Filters NONE Steam 1 RUN: a3aed81f-6390-4796-a61f-368521f92b87